{"text_format":"1","workbook":"xlsx","n_sheets":4,"sheets":["OK","Pivot","Alriab2","الوضوء"],"not_rendered":{"charts":0,"images":1,"macros":0,"external_links":0,"defined_names":100,"comments":0,"pivot_tables":25},"unopened":[],"bounds":{"document_bytes":16777216,"sheet_cells":100000,"rows_first":2000,"rows_last":500,"rows_between":2000,"halvings":0,"cell_chars":16384,"cell_head_chars":4096},"cells_cut":0,"cells_raw":0,"read":"whole","date_system":"1900"}

{"sheet":"OK","index":0,"n_rows":4,"n_cols":3,"rows_kept":4,"cut":false,"hidden":false,"merged":[[4,1,4,2],[0,2,0,5],[3,0,4,0],[3,2,3,5],[4,3,4,5]]}
[{"$f":"DATE($B$4,$A$4,1)","v":"2021-12-01"},{"$f":"A1","v":"2021-12-01"}]
[{"$f":"EOMONTH(A1,0)","v":"2021-12-31"},{"$f":"A2","v":"2021-12-31"}]
[]
[12,2021,"2022-2021"]

{"sheet":"Pivot","index":1,"n_rows":349,"n_cols":219,"rows_kept":349,"cut":false,"hidden":false,"merged":[]}
["الأستاذ","(Leer)",{"$f":"IF(B1=\"\",\"\",VLOOKUP(B1,#REF!,2,FALSE))","v":{"$error":"#REF!"}},null,null,null,null,null,null,null,null,null,null,null,null,null,null,null,null,null,null,null,null,null,null,null,null,null,null,null,null,null,null,null,null,null,null,null,null,null,null,null,null,null,null,null,null,null,null,null,null,null,null,null,null,null,null,null,null,null,null,null,null,null,null,null,null,null,null,null,null,null,null,null,null,null,null,null,"الأستاذ","(Leer)",{"$f":"IF(CB1=\"\",\"\",VLOOKUP(CB1,#REF!,2,FALSE))","v":{"$error":"#REF!"}},null,null,null,null,null,null,null,null,null,null,null,null,null,null,null,null,null,null,null,null,null,null,null,null,null,null,null,null,null,null,null,null,null,null,null,null,null,null,null,null,null,null,null,null,null,null,null,null,null,null,null,null,null,null,null,null,null,null,null,null,null,null,null,null,null,null,null,null,null,null,null,null,null,null,null,"الأستاذ","(Leer)",{"$f":"IF(FB1=\"\",\"\",VLOOKUP(FB1,#REF!,2,FALSE))","v":{"$error":"#REF!"}}]
["المستوى","(Leer)",{"$f":"B2","v":"(Leer)"},null,null,null,null,null,null,null,null,null,null,null,null,null,null,null,null,null,null,null,null,null,null,null,null,null,null,null,null,null,null,null,null,null,null,null,null,null,null,null,null,null,null,null,null,null,null,null,null,null,null,null,null,null,null,null,null,null,null,null,null,null,null,null,null,null,null,null,null,null,null,null,null,null,null,null,"المستوى","(Leer)",{"$f":"CB2","v":"(Leer)"},null,null,null,null,null,null,null,null,null,null,null,null,null,null,null,null,null,null,null,null,null,null,null,null,null,null,null,null,null,null,null,null,null,null,null,null,null,null,null,null,null,null,null,null,null,null,null,null,null,null,null,null,null,null,null,null,null,null,null,null,null,null,null,null,null,null,null,null,null,null,null,null,null,null,null,"المستوى","(Leer)",{"$f":"FB2","v":"(Leer)"}]
["الفوج","(Mehrere Elemente)",null,null,null,null,null,null,null,null,null,null,null,null,null,null,null,null,null,null,null,null,null,null,null,null,null,null,null,null,null,null,null,null,null,null,null,null,null,null,null,null,null,null,null,null,null,null,null,null,null,null,null,null,null,null,null,null,null,null,null,null,null,null,null,null,null,null,null,null,null,null,null,null,null,null,null,null,"الفوج","(Mehrere Elemente)",null,null,null,null,null,null,null,null,null,null,null,null,null,null,null,null,null,null,null,null,null,null,null,null,null,null,null,null,null,null,null,null,null,null,null,null,null,null,null,null,null,null,null,null,null,null,null,null,null,null,null,null,null,null,null,null,null,null,null,null,null,null,null,null,null,null,null,null,null,null,null,null,null,null,null,null,"الفوج","(Leer)"]
[]
["رقم","الإزدياد","إسم الولي","اللقب","الأطفال","السن","شتنبر","أكتوبر","نونبر ","دجنبر ","يناير","فبراير ","مارس ","أبريل ","ماي ","يونيو","يوليوز","الغياب","راسب \\ ناجح","الفاتحة","الناس","الفلق","الإخلاص","المسد","النصر","الكافرون","الكوثر","الماعون","قريش","الفيل","الهمزة","العصر","التكاثر","القارعة","العاديات","الزلزلة","البينة","القدر","العلق","التين","الشرح","الضحى","الليل","الشمس","البلد","الفجر","الغاشية","الأعلى","الطارق","البروج","الإنشقاق","المطففين","الإنفطار","التكوير -1","التكوير -2","التكوير -3","عبس -1","عبس -2","عبس -3","النازعات -1","النازعات -2","النازعات -3","النبأ -1","النبأ -2","النبأ -3",null,null,null,null,null,null,null,null,null,null,null,null,null,"رقم","الإزدياد","إسم الولي","اللقب","الأطفال","السن","شتنبر","أكتوبر","نونبر ","دجنبر ","يناير","فبراير ","مارس ","أبريل ","ماي ","يونيو","يوليوز","الغياب","راسب \\ ناجح","الفاتحة","الناس","الفلق","الإخلاص","المسد","النصر","الكافرون","الكوثر","الماعون","قريش","الفيل","الهمزة","العصر","التكاثر","القارعة","العاديات","الزلزلة","البينة","القدر","العلق","التين","الشرح","الضحى","الليل","الشمس","البلد","الفجر","الغاشية","الأعلى","الطارق","البروج","الإنشقاق","المطففين","الإنفطار","التكوير -1","التكوير -2","التكوير -3","عبس -1","عبس -2","عبس -3","النازعات -1","النازعات -2","النازعات -3","النبأ -1","النبأ -2","النبأ -3",null,null,null,null,null,null,null,null,null,null,null,null,null,"رقم","إسم الولي","اللقب","الأطفال","السن","شتنبر","أكتوبر","نونبر ","دجنبر ","يناير","فبراير ","مارس ","أبريل ","ماي ","يونيو","الغياب","راسب \\ ناجح","الفاتحة","الناس","الفلق","الإخلاص","المسد","النصر","الكافرون","الكوثر","الماعون","قريش","الفيل","الهمزة","العصر","التكاثر","القارعة","العاديات","الزلزلة","البينة","القدر","العلق","التين","الشرح","الضحى","الليل","الشمس","البلد","الفجر","الغاشية","الأعلى","الطارق","البروج","الإنشقاق","المطففين","الإنفطار","التكوير -1","التكوير -2","التكوير -3","عبس -1","عبس -2","عبس -3","النازعات -1","النازعات -2","النازعات -3","النبأ -1","النبأ -2","النبأ -3"]
[null,null,null,null,null,null,null,null,null,null,null,null,null,null,null,null,null,null,null,null,null,null,null,null,null,null,null,null,null,null,null,null,null,null,null,null,null,null,null,null,null,null,null,null,null,null,null,null,null,null,null,null,null,null,null,null,null,null,null,null,null,null,null,null,null,null,null,null,null,null,null,null,null,null,null,null,null,null,null,null,null,null,null,null,null,null,null,null,null,null,null,null,null,null,null,null,null,null,null,null,null,null,null,null,null,null,null,null,null,null,null,null,null,null,null,null,null,null,null,null,null,null,null,null,null,null,null,null,null,null,null,null,null,null,null,null,null,null,null,null,null,null,null,null,null,null,null,null,null,null,null,null,null,null,null,null,"(Leer)","(Leer)","(Leer)","(Leer)","(Leer)","(Leer)","(Leer)","(Leer)","(Leer)","(Leer)","(Leer)","(Leer)","(Leer)","(Leer)","(Leer)","(Leer)","(Leer)","(Leer)","(Leer)","(Leer)","(Leer)","(Leer)","(Leer)","(Leer)","(Leer)","(Leer)","(Leer)","(Leer)","(Leer)","(Leer)","(Leer)","(Leer)","(Leer)","(Leer)","(Leer)","(Leer)","(Leer)","(Leer)","(Leer)","(Leer)","(Leer)","(Leer)","(Leer)","(Leer)","(Leer)","(Leer)","(Leer)","(Leer)","(Leer)","(Leer)","(Leer)","(Leer)","(Leer)","(Leer)","(Leer)","(Leer)","(Leer)","(Leer)","(Leer)","(Leer)","(Leer)","(Leer)","(Leer)"]
[]
[]
[]
[]
[]
[]
[]
[]
[]
[]
[]
[]
[]
[]
[]
[]
[]
[]
[]
[]
[]
[]
[]
[]
[]
[]
[]
[]
[]
[]
[]
[]
[]
[]
[]
[]
[]
[]
["الأستاذ","(Leer)",{"$f":"IF(B45=\"\",\"\",VLOOKUP(B45,#REF!,2,FALSE))","v":{"$error":"#REF!"}},null,null,null,null,null,null,null,null,null,null,null,null,null,null,null,null,null,null,null,null,null,null,null,null,null,null,null,null,null,null,null,null,null,null,null,null,null,null,null,null,null,null,null,null,null,null,null,null,null,null,null,null,null,null,null,null,null,null,null,null,null,null,null,null,null,null,null,null,null,null,null,null,null,null,null,"الأستاذ","(Leer)",{"$f":"IF(CB45=\"\",\"\",VLOOKUP(CB45,#REF!,2,FALSE))","v":{"$error":"#REF!"}},null,null,null,null,null,null,null,null,null,null,null,null,null,null,null,null,null,null,null,null,null,null,null,null,null,null,null,null,null,null,null,null,null,null,null,null,null,null,null,null,null,null,null,null,null,null,null,null,null,null,null,null,null,null,null,null,null,null,null,null,null,null,null,null,null,null,null,null,null,null,null,null,null,null,null,"الأستاذ","(Leer)",{"$f":"IF(FB45=\"\",\"\",VLOOKUP(FB45,#REF!,2,FALSE))","v":{"$error":"#REF!"}}]
["المستوى","(Leer)",{"$f":"B46","v":"(Leer)"},null,null,null,null,null,null,null,null,null,null,null,null,null,null,null,null,null,null,null,null,null,null,null,null,null,null,null,null,null,null,null,null,null,null,null,null,null,null,null,null,null,null,null,null,null,null,null,null,null,null,null,null,null,null,null,null,null,null,null,null,null,null,null,null,null,null,null,null,null,null,null,null,null,null,null,"المستوى","(Leer)",{"$f":"CB46","v":"(Leer)"},null,null,null,null,null,null,null,null,null,null,null,null,null,null,null,null,null,null,null,null,null,null,null,null,null,null,null,null,null,null,null,null,null,null,null,null,null,null,null,null,null,null,null,null,null,null,null,null,null,null,null,null,null,null,null,null,null,null,null,null,null,null,null,null,null,null,null,null,null,null,null,null,null,null,null,"المستوى","(Leer)",{"$f":"FB46","v":"(Leer)"}]
["الفوج","(Mehrere Elemente)",null,null,null,null,null,null,null,null,null,null,null,null,null,null,null,null,null,null,null,null,null,null,null,null,null,null,null,null,null,null,null,null,null,null,null,null,null,null,null,null,null,null,null,null,null,null,null,null,null,null,null,null,null,null,null,null,null,null,null,null,null,null,null,null,null,null,null,null,null,null,null,null,null,null,null,null,"الفوج","(Mehrere Elemente)",null,null,null,null,null,null,null,null,null,null,null,null,null,null,null,null,null,null,null,null,null,null,null,null,null,null,null,null,null,null,null,null,null,null,null,null,null,null,null,null,null,null,null,null,null,null,null,null,null,null,null,null,null,null,null,null,null,null,null,null,null,null,null,null,null,null,null,null,null,null,null,null,null,null,null,null,"الفوج","(Leer)"]
[]
["رقم","الإزدياد","إسم الولي","اللقب","الأطفال","السن","شتنبر","أكتوبر","نونبر ","دجنبر ","يناير","فبراير ","مارس ","أبريل ","ماي ","يونيو","يوليوز","الغياب","راسب \\ ناجح","الفاتحة","الناس","الفلق","الإخلاص","المسد","النصر","الكافرون","الكوثر","الماعون","قريش","الفيل","الهمزة","العصر","التكاثر","القارعة","العاديات","الزلزلة","البينة","القدر","العلق","التين","الشرح","الضحى","الليل","الشمس","البلد","الفجر","الغاشية","الأعلى","الطارق","البروج","الإنشقاق","المطففين","الإنفطار","التكوير -1","التكوير -2","التكوير -3","عبس -1","عبس -2","عبس -3","النازعات -1","النازعات -2","النازعات -3","النبأ -1","النبأ -2","النبأ -3",null,null,null,null,null,null,null,null,null,null,null,null,null,"رقم","الإزدياد","إسم الولي","اللقب","الأطفال","السن","شتنبر","أكتوبر","نونبر ","دجنبر ","يناير","فبراير ","مارس ","أبريل ","ماي ","يونيو","يوليوز","الغياب","راسب \\ ناجح","الفاتحة","الناس","الفلق","الإخلاص","المسد","النصر","الكافرون","الكوثر","الماعون","قريش","الفيل","الهمزة","العصر","التكاثر","القارعة","العاديات","الزلزلة","البينة","القدر","العلق","التين","الشرح","الضحى","الليل","الشمس","البلد","الفجر","الغاشية","الأعلى","الطارق","البروج","الإنشقاق","المطففين","الإنفطار","التكوير -1","التكوير -2","التكوير -3","عبس -1","عبس -2","عبس -3","النازعات -1","النازعات -2","النازعات -3","النبأ -1","النبأ -2","النبأ -3",null,null,null,null,null,null,null,null,null,null,null,null,null,"رقم","إسم الولي","اللقب","الأطفال","السن","شتنبر","أكتوبر","نونبر ","دجنبر ","يناير","فبراير ","مارس ","أبريل ","ماي ","يونيو","الغياب","راسب \\ ناجح","الفاتحة","الناس","الفلق","الإخلاص","المسد","النصر","الكافرون","الكوثر","الماعون","قريش","الفيل","الهمزة","العصر","التكاثر","القارعة","العاديات","الزلزلة","البينة","القدر","العلق","التين","الشرح","الضحى","الليل","الشمس","البلد","الفجر","الغاشية","الأعلى","الطارق","البروج","الإنشقاق","المطففين","الإنفطار","التكوير -1","التكوير -2","التكوير -3","عبس -1","عبس -2","عبس -3","النازعات -1","النازعات -2","النازعات -3","النبأ -1","النبأ -2","النبأ -3"]
[null,null,null,null,null,null,null,null,null,null,null,null,null,null,null,null,null,null,null,null,null,null,null,null,null,null,null,null,null,null,null,null,null,null,null,null,null,null,null,null,null,null,null,null,null,null,null,null,null,null,null,null,null,null,null,null,null,null,null,null,null,null,null,null,null,null,null,null,null,null,null,null,null,null,null,null,null,null,null,null,null,null,null,null,null,null,null,null,null,null,null,null,null,null,null,null,null,null,null,null,null,null,null,null,null,null,null,null,null,null,null,null,null,null,null,null,null,null,null,null,null,null,null,null,null,null,null,null,null,null,null,null,null,null,null,null,null,null,null,null,null,null,null,null,null,null,null,null,null,null,null,null,null,null,null,null,"(Leer)","(Leer)","(Leer)","(Leer)","(Leer)","(Leer)","(Leer)","(Leer)","(Leer)","(Leer)","(Leer)","(Leer)","(Leer)","(Leer)","(Leer)","(Leer)","(Leer)","(Leer)","(Leer)","(Leer)","(Leer)","(Leer)","(Leer)","(Leer)","(Leer)","(Leer)","(Leer)","(Leer)","(Leer)","(Leer)","(Leer)","(Leer)","(Leer)","(Leer)","(Leer)","(Leer)","(Leer)","(Leer)","(Leer)","(Leer)","(Leer)","(Leer)","(Leer)","(Leer)","(Leer)","(Leer)","(Leer)","(Leer)","(Leer)","(Leer)","(Leer)","(Leer)","(Leer)","(Leer)","(Leer)","(Leer)","(Leer)","(Leer)","(Leer)","(Leer)","(Leer)","(Leer)","(Leer)"]
[]
[]
[]
[]
[]
[]
[]
[]
[]
[]
[]
[]
[]
[]
[]
[]
[]
[]
[]
[]
[]
[]
[]
[]
[]
[]
[]
[]
[]
[]
[]
[]
[]
[]
[]
[]
[]
[]
[]
[]
[]
[]
[]
[]
["الأستاذ","(Leer)",{"$f":"IF(B95=\"\",\"\",VLOOKUP(B95,#REF!,2,FALSE))","v":{"$error":"#REF!"}},null,null,null,null,null,null,null,null,null,null,null,null,null,null,null,null,null,null,null,null,null,null,null,null,null,null,null,null,null,null,null,null,null,null,null,null,null,null,null,null,null,null,null,null,null,null,null,null,null,null,null,null,null,null,null,null,null,null,null,null,null,null,null,null,null,null,null,null,null,null,null,null,null,null,null,"الأستاذ","(Leer)",{"$f":"IF(CB95=\"\",\"\",VLOOKUP(CB95,#REF!,2,FALSE))","v":{"$error":"#REF!"}},null,null,null,null,null,null,null,null,null,null,null,null,null,null,null,null,null,null,null,null,null,null,null,null,null,null,null,null,null,null,null,null,null,null,null,null,null,null,null,null,null,null,null,null,null,null,null,null,null,null,null,null,null,null,null,null,null,null,null,null,null,null,null,null,null,null,null,null,null,null,null,null,null,null,null,"الأستاذ","(Leer)",{"$f":"IF(FB95=\"\",\"\",VLOOKUP(FB95,#REF!,2,FALSE))","v":{"$error":"#REF!"}}]
["المستوى","(Leer)",{"$f":"B96","v":"(Leer)"},null,null,null,null,null,null,null,null,null,null,null,null,null,null,null,null,null,null,null,null,null,null,null,null,null,null,null,null,null,null,null,null,null,null,null,null,null,null,null,null,null,null,null,null,null,null,null,null,null,null,null,null,null,null,null,null,null,null,null,null,null,null,null,null,null,null,null,null,null,null,null,null,null,null,null,"المستوى","(Leer)",{"$f":"CB96","v":"(Leer)"},null,null,null,null,null,null,null,null,null,null,null,null,null,null,null,null,null,null,null,null,null,null,null,null,null,null,null,null,null,null,null,null,null,null,null,null,null,null,null,null,null,null,null,null,null,null,null,null,null,null,null,null,null,null,null,null,null,null,null,null,null,null,null,null,null,null,null,null,null,null,null,null,null,null,null,"المستوى","(Leer)",{"$f":"FB96","v":"(Leer)"}]
["الفوج","(Mehrere Elemente)",null,null,null,null,null,null,null,null,null,null,null,null,null,null,null,null,null,null,null,null,null,null,null,null,null,null,null,null,null,null,null,null,null,null,null,null,null,null,null,null,null,null,null,null,null,null,null,null,null,null,null,null,null,null,null,null,null,null,null,null,null,null,null,null,null,null,null,null,null,null,null,null,null,null,null,null,"الفوج","(Mehrere Elemente)",null,null,null,null,null,null,null,null,null,null,null,null,null,null,null,null,null,null,null,null,null,null,null,null,null,null,null,null,null,null,null,null,null,null,null,null,null,null,null,null,null,null,null,null,null,null,null,null,null,null,null,null,null,null,null,null,null,null,null,null,null,null,null,null,null,null,null,null,null,null,null,null,null,null,null,null,"الفوج","(Leer)"]
[]
["رقم","الإزدياد","إسم الولي","اللقب","الأطفال","السن","شتنبر","أكتوبر","نونبر ","دجنبر ","يناير","فبراير ","مارس ","أبريل ","ماي ","يونيو","يوليوز","الغياب","راسب \\ ناجح","الفاتحة","الناس","الفلق","الإخلاص","المسد","النصر","الكافرون","الكوثر","الماعون","قريش","الفيل","الهمزة","العصر","التكاثر","القارعة","العاديات","الزلزلة","البينة","القدر","العلق","التين","الشرح","الضحى","الليل","الشمس","البلد","الفجر","الغاشية","الأعلى","الطارق","البروج","الإنشقاق","المطففين","الإنفطار","التكوير -1","التكوير -2","التكوير -3","عبس -1","عبس -2","عبس -3","النازعات -1","النازعات -2","النازعات -3","النبأ -1","النبأ -2","النبأ -3",null,null,null,null,null,null,null,null,null,null,null,null,null,"رقم","الإزدياد","إسم الولي","اللقب","الأطفال","السن","شتنبر","أكتوبر","نونبر ","دجنبر ","يناير","فبراير ","مارس ","أبريل ","ماي ","يونيو","يوليوز","الغياب","راسب \\ ناجح","الفاتحة","الناس","الفلق","الإخلاص","المسد","النصر","الكافرون","الكوثر","الماعون","قريش","الفيل","الهمزة","العصر","التكاثر","القارعة","العاديات","الزلزلة","البينة","القدر","العلق","التين","الشرح","الضحى","الليل","الشمس","البلد","الفجر","الغاشية","الأعلى","الطارق","البروج","الإنشقاق","المطففين","الإنفطار","التكوير -1","التكوير -2","التكوير -3","عبس -1","عبس -2","عبس -3","النازعات -1","النازعات -2","النازعات -3","النبأ -1","النبأ -2","النبأ -3",null,null,null,null,null,null,null,null,null,null,null,null,null,"رقم","إسم الولي","اللقب","الأطفال","السن","شتنبر","أكتوبر","نونبر ","دجنبر ","يناير","فبراير ","مارس ","أبريل ","ماي ","يونيو","الغياب","راسب \\ ناجح","الفاتحة","الناس","الفلق","الإخلاص","المسد","النصر","الكافرون","الكوثر","الماعون","قريش","الفيل","الهمزة","العصر","التكاثر","القارعة","العاديات","الزلزلة","البينة","القدر","العلق","التين","الشرح","الضحى","الليل","الشمس","البلد","الفجر","الغاشية","الأعلى","الطارق","البروج","الإنشقاق","المطففين","الإنفطار","التكوير -1","التكوير -2","التكوير -3","عبس -1","عبس -2","عبس -3","النازعات -1","النازعات -2","النازعات -3","النبأ -1","النبأ -2","النبأ -3"]
[null,null,null,null,null,null,null,null,null,null,null,null,null,null,null,null,null,null,null,null,null,null,null,null,null,null,null,null,null,null,null,null,null,null,null,null,null,null,null,null,null,null,null,null,null,null,null,null,null,null,null,null,null,null,null,null,null,null,null,null,null,null,null,null,null,null,null,null,null,null,null,null,null,null,null,null,null,null,null,null,null,null,null,null,null,null,null,null,null,null,null,null,null,null,null,null,null,null,null,null,null,null,null,null,null,null,null,null,null,null,null,null,null,null,null,null,null,null,null,null,null,null,null,null,null,null,null,null,null,null,null,null,null,null,null,null,null,null,null,null,null,null,null,null,null,null,null,null,null,null,null,null,null,null,null,null,"(Leer)","(Leer)","(Leer)","(Leer)","(Leer)","(Leer)","(Leer)","(Leer)","(Leer)","(Leer)","(Leer)","(Leer)","(Leer)","(Leer)","(Leer)","(Leer)","(Leer)","(Leer)","(Leer)","(Leer)","(Leer)","(Leer)","(Leer)","(Leer)","(Leer)","(Leer)","(Leer)","(Leer)","(Leer)","(Leer)","(Leer)","(Leer)","(Leer)","(Leer)","(Leer)","(Leer)","(Leer)","(Leer)","(Leer)","(Leer)","(Leer)","(Leer)","(Leer)","(Leer)","(Leer)","(Leer)","(Leer)","(Leer)","(Leer)","(Leer)","(Leer)","(Leer)","(Leer)","(Leer)","(Leer)","(Leer)","(Leer)","(Leer)","(Leer)","(Leer)","(Leer)","(Leer)","(Leer)"]
[]
[]
[]
[]
[]
[]
[]
[]
[]
[]
[]
[]
[]
[]
[]
[]
[]
[]
[]
[]
[]
[]
[]
[]
[]
[]
[]
[]
[]
[]
[]
[]
[]
[]
[]
[]
[]
[]
[]
[]
[]
[]
[]
[]
["الأستاذ","(Leer)",{"$f":"IF(B145=\"\",\"\",VLOOKUP(B145,#REF!,2,FALSE))","v":{"$error":"#REF!"}},null,null,null,null,null,null,null,null,null,null,null,null,null,null,null,null,null,null,null,null,null,null,null,null,null,null,null,null,null,null,null,null,null,null,null,null,null,null,null,null,null,null,null,null,null,null,null,null,null,null,null,null,null,null,null,null,null,null,null,null,null,null,null,null,null,null,null,null,null,null,null,null,null,null,null,"الأستاذ","(Leer)",{"$f":"IF(CB145=\"\",\"\",VLOOKUP(CB145,#REF!,2,FALSE))","v":{"$error":"#REF!"}},null,null,null,null,null,null,null,null,null,null,null,null,null,null,null,null,null,null,null,null,null,null,null,null,null,null,null,null,null,null,null,null,null,null,null,null,null,null,null,null,null,null,null,null,null,null,null,null,null,null,null,null,null,null,null,null,null,null,null,null,null,null,null,null,null,null,null,null,null,null,null,null,null,null,null,"الأستاذ","(Leer)",{"$f":"IF(FB145=\"\",\"\",VLOOKUP(FB145,#REF!,2,FALSE))","v":{"$error":"#REF!"}}]
["المستوى","(Leer)",{"$f":"B146","v":"(Leer)"},null,null,null,null,null,null,null,null,null,null,null,null,null,null,null,null,null,null,null,null,null,null,null,null,null,null,null,null,null,null,null,null,null,null,null,null,null,null,null,null,null,null,null,null,null,null,null,null,null,null,null,null,null,null,null,null,null,null,null,null,null,null,null,null,null,null,null,null,null,null,null,null,null,null,null,"المستوى","(Leer)",{"$f":"CB146","v":"(Leer)"},null,null,null,null,null,null,null,null,null,null,null,null,null,null,null,null,null,null,null,null,null,null,null,null,null,null,null,null,null,null,null,null,null,null,null,null,null,null,null,null,null,null,null,null,null,null,null,null,null,null,null,null,null,null,null,null,null,null,null,null,null,null,null,null,null,null,null,null,null,null,null,null,null,null,null,"المستوى","(Leer)",{"$f":"FB146","v":"(Leer)"}]
["الفوج","(Mehrere Elemente)",null,null,null,null,null,null,null,null,null,null,null,null,null,null,null,null,null,null,null,null,null,null,null,null,null,null,null,null,null,null,null,null,null,null,null,null,null,null,null,null,null,null,null,null,null,null,null,null,null,null,null,null,null,null,null,null,null,null,null,null,null,null,null,null,null,null,null,null,null,null,null,null,null,null,null,null,"الفوج","(Mehrere Elemente)",null,null,null,null,null,null,null,null,null,null,null,null,null,null,null,null,null,null,null,null,null,null,null,null,null,null,null,null,null,null,null,null,null,null,null,null,null,null,null,null,null,null,null,null,null,null,null,null,null,null,null,null,null,null,null,null,null,null,null,null,null,null,null,null,null,null,null,null,null,null,null,null,null,null,null,null,"الفوج","(Leer)"]
[]
["رقم","الإزدياد","إسم الولي","اللقب","الأطفال","السن","شتنبر","أكتوبر","نونبر ","دجنبر ","يناير","فبراير ","مارس ","أبريل ","ماي ","يونيو","يوليوز","الغياب","راسب \\ ناجح","الفاتحة","الناس","الفلق","الإخلاص","المسد","النصر","الكافرون","الكوثر","الماعون","قريش","الفيل","الهمزة","العصر","التكاثر","القارعة","العاديات","الزلزلة","البينة","القدر","العلق","التين","الشرح","الضحى","الليل","الشمس","البلد","الفجر","الغاشية","الأعلى","الطارق","البروج","الإنشقاق","المطففين","الإنفطار","التكوير -1","التكوير -2","التكوير -3","عبس -1","عبس -2","عبس -3","النازعات -1","النازعات -2","النازعات -3","النبأ -1","النبأ -2","النبأ -3",null,null,null,null,null,null,null,null,null,null,null,null,null,"رقم","الإزدياد","إسم الولي","اللقب","الأطفال","السن","شتنبر","أكتوبر","نونبر ","دجنبر ","يناير","فبراير ","مارس ","أبريل ","ماي ","يونيو","يوليوز","الغياب","راسب \\ ناجح","الفاتحة","الناس","الفلق","الإخلاص","المسد","النصر","الكافرون","الكوثر","الماعون","قريش","الفيل","الهمزة","العصر","التكاثر","القارعة","العاديات","الزلزلة","البينة","القدر","العلق","التين","الشرح","الضحى","الليل","الشمس","البلد","الفجر","الغاشية","الأعلى","الطارق","البروج","الإنشقاق","المطففين","الإنفطار","التكوير -1","التكوير -2","التكوير -3","عبس -1","عبس -2","عبس -3","النازعات -1","النازعات -2","النازعات -3","النبأ -1","النبأ -2","النبأ -3",null,null,null,null,null,null,null,null,null,null,null,null,null,"رقم","إسم الولي","اللقب","الأطفال","السن","شتنبر","أكتوبر","نونبر ","دجنبر ","يناير","فبراير ","مارس ","أبريل ","ماي ","يونيو","الغياب","راسب \\ ناجح","الفاتحة","الناس","الفلق","الإخلاص","المسد","النصر","الكافرون","الكوثر","الماعون","قريش","الفيل","الهمزة","العصر","التكاثر","القارعة","العاديات","الزلزلة","البينة","القدر","العلق","التين","الشرح","الضحى","الليل","الشمس","البلد","الفجر","الغاشية","الأعلى","الطارق","البروج","الإنشقاق","المطففين","الإنفطار","التكوير -1","التكوير -2","التكوير -3","عبس -1","عبس -2","عبس -3","النازعات -1","النازعات -2","النازعات -3","النبأ -1","النبأ -2","النبأ -3"]
[null,null,null,null,null,null,null,null,null,null,null,null,null,null,null,null,null,null,null,null,null,null,null,null,null,null,null,null,null,null,null,null,null,null,null,null,null,null,null,null,null,null,null,null,null,null,null,null,null,null,null,null,null,null,null,null,null,null,null,null,null,null,null,null,null,null,null,null,null,null,null,null,null,null,null,null,null,null,null,null,null,null,null,null,null,null,null,null,null,null,null,null,null,null,null,null,null,null,null,null,null,null,null,null,null,null,null,null,null,null,null,null,null,null,null,null,null,null,null,null,null,null,null,null,null,null,null,null,null,null,null,null,null,null,null,null,null,null,null,null,null,null,null,null,null,null,null,null,null,null,null,null,null,null,null,null,"(Leer)","(Leer)","(Leer)","(Leer)","(Leer)","(Leer)","(Leer)","(Leer)","(Leer)","(Leer)","(Leer)","(Leer)","(Leer)","(Leer)","(Leer)","(Leer)","(Leer)","(Leer)","(Leer)","(Leer)","(Leer)","(Leer)","(Leer)","(Leer)","(Leer)","(Leer)","(Leer)","(Leer)","(Leer)","(Leer)","(Leer)","(Leer)","(Leer)","(Leer)","(Leer)","(Leer)","(Leer)","(Leer)","(Leer)","(Leer)","(Leer)","(Leer)","(Leer)","(Leer)","(Leer)","(Leer)","(Leer)","(Leer)","(Leer)","(Leer)","(Leer)","(Leer)","(Leer)","(Leer)","(Leer)","(Leer)","(Leer)","(Leer)","(Leer)","(Leer)","(Leer)","(Leer)","(Leer)"]
[]
[]
[]
[]
[]
[]
[]
[]
[]
[]
[]
[]
[]
[]
[]
[]
[]
[]
[]
[]
[]
[]
[]
[]
[]
[]
[]
[]
[]
[]
[]
[]
[]
[]
[]
[]
[]
[]
[]
[]
[]
[]
[]
[]
["الأستاذ","(Leer)",{"$f":"IF(B195=\"\",\"\",VLOOKUP(B195,#REF!,2,FALSE))","v":{"$error":"#REF!"}},null,null,null,null,null,null,null,null,null,null,null,null,null,null,null,null,null,null,null,null,null,null,null,null,null,null,null,null,null,null,null,null,null,null,null,null,null,null,null,null,null,null,null,null,null,null,null,null,null,null,null,null,null,null,null,null,null,null,null,null,null,null,null,null,null,null,null,null,null,null,null,null,null,null,null,"الأستاذ","(Leer)",{"$f":"IF(CB195=\"\",\"\",VLOOKUP(CB195,#REF!,2,FALSE))","v":{"$error":"#REF!"}},null,null,null,null,null,null,null,null,null,null,null,null,null,null,null,null,null,null,null,null,null,null,null,null,null,null,null,null,null,null,null,null,null,null,null,null,null,null,null,null,null,null,null,null,null,null,null,null,null,null,null,null,null,null,null,null,null,null,null,null,null,null,null,null,null,null,null,null,null,null,null,null,null,null,null,"الأستاذ","(Leer)",{"$f":"IF(FB195=\"\",\"\",VLOOKUP(FB195,#REF!,2,FALSE))","v":{"$error":"#REF!"}}]
["المستوى","(Leer)",{"$f":"B196","v":"(Leer)"},null,null,null,null,null,null,null,null,null,null,null,null,null,null,null,null,null,null,null,null,null,null,null,null,null,null,null,null,null,null,null,null,null,null,null,null,null,null,null,null,null,null,null,null,null,null,null,null,null,null,null,null,null,null,null,null,null,null,null,null,null,null,null,null,null,null,null,null,null,null,null,null,null,null,null,"المستوى","(Leer)",{"$f":"CB196","v":"(Leer)"},null,null,null,null,null,null,null,null,null,null,null,null,null,null,null,null,null,null,null,null,null,null,null,null,null,null,null,null,null,null,null,null,null,null,null,null,null,null,null,null,null,null,null,null,null,null,null,null,null,null,null,null,null,null,null,null,null,null,null,null,null,null,null,null,null,null,null,null,null,null,null,null,null,null,null,"المستوى","(Leer)",{"$f":"FB196","v":"(Leer)"}]
["الفوج","(Mehrere Elemente)",null,null,null,null,null,null,null,null,null,null,null,null,null,null,null,null,null,null,null,null,null,null,null,null,null,null,null,null,null,null,null,null,null,null,null,null,null,null,null,null,null,null,null,null,null,null,null,null,null,null,null,null,null,null,null,null,null,null,null,null,null,null,null,null,null,null,null,null,null,null,null,null,null,null,null,null,"الفوج","(Mehrere Elemente)",null,null,null,null,null,null,null,null,null,null,null,null,null,null,null,null,null,null,null,null,null,null,null,null,null,null,null,null,null,null,null,null,null,null,null,null,null,null,null,null,null,null,null,null,null,null,null,null,null,null,null,null,null,null,null,null,null,null,null,null,null,null,null,null,null,null,null,null,null,null,null,null,null,null,null,null,"الفوج","(Mehrere Elemente)"]
[]
["رقم","الإزدياد","إسم الولي","اللقب","الأطفال","السن","شتنبر","أكتوبر","نونبر ","دجنبر ","يناير","فبراير ","مارس ","أبريل ","ماي ","يونيو","يوليوز","الغياب","راسب \\ ناجح","الفاتحة","الناس","الفلق","الإخلاص","المسد","النصر","الكافرون","الكوثر","الماعون","قريش","الفيل","الهمزة","العصر","التكاثر","القارعة","العاديات","الزلزلة","البينة","القدر","العلق","التين","الشرح","الضحى","الليل","الشمس","البلد","الفجر","الغاشية","الأعلى","الطارق","البروج","الإنشقاق","المطففين","الإنفطار","التكوير -1","التكوير -2","التكوير -3","عبس -1","عبس -2","عبس -3","النازعات -1","النازعات -2","النازعات -3","النبأ -1","النبأ -2","النبأ -3",null,null,null,null,null,null,null,null,null,null,null,null,null,"رقم","الإزدياد","إسم الولي","اللقب","الأطفال","السن","شتنبر","أكتوبر","نونبر ","دجنبر ","يناير","فبراير ","مارس ","أبريل ","ماي ","يونيو","يوليوز","الغياب","راسب \\ ناجح","الفاتحة","الناس","الفلق","الإخلاص","المسد","النصر","الكافرون","الكوثر","الماعون","قريش","الفيل","الهمزة","العصر","التكاثر","القارعة","العاديات","الزلزلة","البينة","القدر","العلق","التين","الشرح","الضحى","الليل","الشمس","البلد","الفجر","الغاشية","الأعلى","الطارق","البروج","الإنشقاق","المطففين","الإنفطار","التكوير -1","التكوير -2","التكوير -3","عبس -1","عبس -2","عبس -3","النازعات -1","النازعات -2","النازعات -3","النبأ -1","النبأ -2","النبأ -3",null,null,null,null,null,null,null,null,null,null,null,null,null,"رقم","إسم الولي","اللقب","الأطفال","السن","شتنبر","أكتوبر","نونبر ","دجنبر ","يناير","فبراير ","مارس ","أبريل ","ماي ","يونيو","الغياب","راسب \\ ناجح","الفاتحة","الناس","الفلق","الإخلاص","المسد","النصر","الكافرون","الكوثر","الماعون","قريش","الفيل","الهمزة","العصر","التكاثر","القارعة","العاديات","الزلزلة","البينة","القدر","العلق","التين","الشرح","الضحى","الليل","الشمس","البلد","الفجر","الغاشية","الأعلى","الطارق","البروج","الإنشقاق","المطففين","الإنفطار","التكوير -1","التكوير -2","التكوير -3","عبس -1","عبس -2","عبس -3","النازعات -1","النازعات -2","النازعات -3","النبأ -1","النبأ -2","النبأ -3"]
[]
[]
[]
[]
[]
[]
[]
[]
[]
[]
[]
[]
[]
[]
[]
[]
[]
[]
[]
[]
[]
[]
[]
[]
[]
[]
[]
[]
[]
[]
[]
[]
[]
[]
[]
[]
[]
[]
[]
[]
[]
[]
[]
[]
[]
["الأستاذ","(Leer)",{"$f":"IF(B245=\"\",\"\",VLOOKUP(B245,#REF!,2,FALSE))","v":{"$error":"#REF!"}},null,null,null,null,null,null,null,null,null,null,null,null,null,null,null,null,null,null,null,null,null,null,null,null,null,null,null,null,null,null,null,null,null,null,null,null,null,null,null,null,null,null,null,null,null,null,null,null,null,null,null,null,null,null,null,null,null,null,null,null,null,null,null,null,null,null,null,null,null,null,null,null,null,null,null,"الأستاذ","(Leer)",{"$f":"IF(CB245=\"\",\"\",VLOOKUP(CB245,#REF!,2,FALSE))","v":{"$error":"#REF!"}},null,null,null,null,null,null,null,null,null,null,null,null,null,null,null,null,null,null,null,null,null,null,null,null,null,null,null,null,null,null,null,null,null,null,null,null,null,null,null,null,null,null,null,null,null,null,null,null,null,null,null,null,null,null,null,null,null,null,null,null,null,null,null,null,null,null,null,null,null,null,null,null,null,null,null,"الأستاذ","(Leer)",{"$f":"IF(FB245=\"\",\"\",VLOOKUP(FB245,#REF!,2,FALSE))","v":{"$error":"#REF!"}}]
["المستوى","(Leer)",{"$f":"B246","v":"(Leer)"},null,null,null,null,null,null,null,null,null,null,null,null,null,null,null,null,null,null,null,null,null,null,null,null,null,null,null,null,null,null,null,null,null,null,null,null,null,null,null,null,null,null,null,null,null,null,null,null,null,null,null,null,null,null,null,null,null,null,null,null,null,null,null,null,null,null,null,null,null,null,null,null,null,null,null,"المستوى","(Leer)",{"$f":"CB246","v":"(Leer)"},null,null,null,null,null,null,null,null,null,null,null,null,null,null,null,null,null,null,null,null,null,null,null,null,null,null,null,null,null,null,null,null,null,null,null,null,null,null,null,null,null,null,null,null,null,null,null,null,null,null,null,null,null,null,null,null,null,null,null,null,null,null,null,null,null,null,null,null,null,null,null,null,null,null,null,"المستوى","(Leer)",{"$f":"FB246","v":"(Leer)"}]
["الفوج","(Mehrere Elemente)",null,null,null,null,null,null,null,null,null,null,null,null,null,null,null,null,null,null,null,null,null,null,null,null,null,null,null,null,null,null,null,null,null,null,null,null,null,null,null,null,null,null,null,null,null,null,null,null,null,null,null,null,null,null,null,null,null,null,null,null,null,null,null,null,null,null,null,null,null,null,null,null,null,null,null,null,"الفوج","(Mehrere Elemente)",null,null,null,null,null,null,null,null,null,null,null,null,null,null,null,null,null,null,null,null,null,null,null,null,null,null,null,null,null,null,null,null,null,null,null,null,null,null,null,null,null,null,null,null,null,null,null,null,null,null,null,null,null,null,null,null,null,null,null,null,null,null,null,null,null,null,null,null,null,null,null,null,null,null,null,null,"الفوج","(Mehrere Elemente)"]
[]
["رقم","الإزدياد","إسم الولي","اللقب","الأطفال","السن","شتنبر","أكتوبر","نونبر ","دجنبر ","يناير","فبراير ","مارس ","أبريل ","ماي ","يونيو","يوليوز","الغياب","راسب \\ ناجح","الفاتحة","الناس","الفلق","الإخلاص","المسد","النصر","الكافرون","الكوثر","الماعون","قريش","الفيل","الهمزة","العصر","التكاثر","القارعة","العاديات","الزلزلة","البينة","القدر","العلق","التين","الشرح","الضحى","الليل","الشمس","البلد","الفجر","الغاشية","الأعلى","الطارق","البروج","الإنشقاق","المطففين","الإنفطار","التكوير -1","التكوير -2","التكوير -3","عبس -1","عبس -2","عبس -3","النازعات -1","النازعات -2","النازعات -3","النبأ -1","النبأ -2","النبأ -3",null,null,null,null,null,null,null,null,null,null,null,null,null,"رقم","الإزدياد","إسم الولي","اللقب","الأطفال","السن","شتنبر","أكتوبر","نونبر ","دجنبر ","يناير","فبراير ","مارس ","أبريل ","ماي ","يونيو","يوليوز","الغياب","راسب \\ ناجح","الفاتحة","الناس","الفلق","الإخلاص","المسد","النصر","الكافرون","الكوثر","الماعون","قريش","الفيل","الهمزة","العصر","التكاثر","القارعة","العاديات","الزلزلة","البينة","القدر","العلق","التين","الشرح","الضحى","الليل","الشمس","البلد","الفجر","الغاشية","الأعلى","الطارق","البروج","الإنشقاق","المطففين","الإنفطار","التكوير -1","التكوير -2","التكوير -3","عبس -1","عبس -2","عبس -3","النازعات -1","النازعات -2","النازعات -3","النبأ -1","النبأ -2","النبأ -3",null,null,null,null,null,null,null,null,null,null,null,null,null,"رقم","إسم الولي","اللقب","الأطفال","السن","شتنبر","أكتوبر","نونبر ","دجنبر ","يناير","فبراير ","مارس ","أبريل ","ماي ","يونيو","الغياب","راسب \\ ناجح","الفاتحة","الناس","الفلق","الإخلاص","المسد","النصر","الكافرون","الكوثر","الماعون","قريش","الفيل","الهمزة","العصر","التكاثر","القارعة","العاديات","الزلزلة","البينة","القدر","العلق","التين","الشرح","الضحى","الليل","الشمس","البلد","الفجر","الغاشية","الأعلى","الطارق","البروج","الإنشقاق","المطففين","الإنفطار","التكوير -1","التكوير -2","التكوير -3","عبس -1","عبس -2","عبس -3","النازعات -1","النازعات -2","النازعات -3","النبأ -1","النبأ -2","النبأ -3"]
[]
[]
[]
[]
[]
[]
[]
[]
[]
[]
[]
[]
[]
[]
[]
[]
[]
[]
[]
[]
[]
[]
[]
[]
[]
[]
[]
[]
[]
[]
[]
[]
[]
[]
[]
[]
[]
[]
[]
[]
[]
[]
[]
[]
[]
["الأستاذ","(Leer)",{"$f":"IF(B295=\"\",\"\",VLOOKUP(B295,#REF!,2,FALSE))","v":{"$error":"#REF!"}},null,null,null,null,null,null,null,null,null,null,null,null,null,null,null,null,null,null,null,null,null,null,null,null,null,null,null,null,null,null,null,null,null,null,null,null,null,null,null,null,null,null,null,null,null,null,null,null,null,null,null,null,null,null,null,null,null,null,null,null,null,null,null,null,null,null,null,null,null,null,null,null,null,null,null,"الأستاذ","(Leer)",{"$f":"IF(CB295=\"\",\"\",VLOOKUP(CB295,#REF!,2,FALSE))","v":{"$error":"#REF!"}},null,null,null,null,null,null,null,null,null,null,null,null,null,null,null,null,null,null,null,null,null,null,null,null,null,null,null,null,null,null,null,null,null,null,null,null,null,null,null,null,null,null,null,null,null,null,null,null,null,null,null,null,null,null,null,null,null,null,null,null,null,null,null,null,null,null,null,null,null,null,null,null,null,null,null,"الأستاذ","(Leer)",{"$f":"IF(FB295=\"\",\"\",VLOOKUP(FB295,#REF!,2,FALSE))","v":{"$error":"#REF!"}}]
["المستوى","(Leer)",{"$f":"B296","v":"(Leer)"},null,null,null,null,null,null,null,null,null,null,null,null,null,null,null,null,null,null,null,null,null,null,null,null,null,null,null,null,null,null,null,null,null,null,null,null,null,null,null,null,null,null,null,null,null,null,null,null,null,null,null,null,null,null,null,null,null,null,null,null,null,null,null,null,null,null,null,null,null,null,null,null,null,null,null,"المستوى","(Leer)",{"$f":"CB296","v":"(Leer)"},null,null,null,null,null,null,null,null,null,null,null,null,null,null,null,null,null,null,null,null,null,null,null,null,null,null,null,null,null,null,null,null,null,null,null,null,null,null,null,null,null,null,null,null,null,null,null,null,null,null,null,null,null,null,null,null,null,null,null,null,null,null,null,null,null,null,null,null,null,null,null,null,null,null,null,"المستوى","(Leer)",{"$f":"FB296","v":"(Leer)"}]
["الفوج","(Mehrere Elemente)",null,null,null,null,null,null,null,null,null,null,null,null,null,null,null,null,null,null,null,null,null,null,null,null,null,null,null,null,null,null,null,null,null,null,null,null,null,null,null,null,null,null,null,null,null,null,null,null,null,null,null,null,null,null,null,null,null,null,null,null,null,null,null,null,null,null,null,null,null,null,null,null,null,null,null,null,"الفوج","(Mehrere Elemente)",null,null,null,null,null,null,null,null,null,null,null,null,null,null,null,null,null,null,null,null,null,null,null,null,null,null,null,null,null,null,null,null,null,null,null,null,null,null,null,null,null,null,null,null,null,null,null,null,null,null,null,null,null,null,null,null,null,null,null,null,null,null,null,null,null,null,null,null,null,null,null,null,null,null,null,null,"الفوج","(Mehrere Elemente)"]
[]
["رقم","الإزدياد","إسم الولي","اللقب","الأطفال","السن","شتنبر","أكتوبر","نونبر ","دجنبر ","يناير","فبراير ","مارس ","أبريل ","ماي ","يونيو","يوليوز","الغياب","راسب \\ ناجح","الفاتحة","الناس","الفلق","الإخلاص","المسد","النصر","الكافرون","الكوثر","الماعون","قريش","الفيل","الهمزة","العصر","التكاثر","القارعة","العاديات","الزلزلة","البينة","القدر","العلق","التين","الشرح","الضحى","الليل","الشمس","البلد","الفجر","الغاشية","الأعلى","الطارق","البروج","الإنشقاق","المطففين","الإنفطار","التكوير -1","التكوير -2","التكوير -3","عبس -1","عبس -2","عبس -3","النازعات -1","النازعات -2","النازعات -3","النبأ -1","النبأ -2","النبأ -3",null,null,null,null,null,null,null,null,null,null,null,null,null,"رقم","الإزدياد","إسم الولي","اللقب","الأطفال","السن","شتنبر","أكتوبر","نونبر ","دجنبر ","يناير","فبراير ","مارس ","أبريل ","ماي ","يونيو","يوليوز","الغياب","راسب \\ ناجح","الفاتحة","الناس","الفلق","الإخلاص","المسد","النصر","الكافرون","الكوثر","الماعون","قريش","الفيل","الهمزة","العصر","التكاثر","القارعة","العاديات","الزلزلة","البينة","القدر","العلق","التين","الشرح","الضحى","الليل","الشمس","البلد","الفجر","الغاشية","الأعلى","الطارق","البروج","الإنشقاق","المطففين","الإنفطار","التكوير -1","التكوير -2","التكوير -3","عبس -1","عبس -2","عبس -3","النازعات -1","النازعات -2","النازعات -3","النبأ -1","النبأ -2","النبأ -3",null,null,null,null,null,null,null,null,null,null,null,null,null,"رقم","إسم الولي","اللقب","الأطفال","السن","شتنبر","أكتوبر","نونبر ","دجنبر ","يناير","فبراير ","مارس ","أبريل ","ماي ","يونيو","الغياب","راسب \\ ناجح","الفاتحة","الناس","الفلق","الإخلاص","المسد","النصر","الكافرون","الكوثر","الماعون","قريش","الفيل","الهمزة","العصر","التكاثر","القارعة","العاديات","الزلزلة","البينة","القدر","العلق","التين","الشرح","الضحى","الليل","الشمس","البلد","الفجر","الغاشية","الأعلى","الطارق","البروج","الإنشقاق","المطففين","الإنفطار","التكوير -1","التكوير -2","التكوير -3","عبس -1","عبس -2","عبس -3","النازعات -1","النازعات -2","النازعات -3","النبأ -1","النبأ -2","النبأ -3"]
[]
[]
[]
[]
[]
[]
[]
[]
[]
[]
[]
[]
[]
[]
[]
[]
[]
[]
[]
[]
[]
[]
[]
[]
[]
[]
[]
[]
[]
[]
[]
[]
[]
[]
[]
[]
[]
[]
[]
[]
[]
[]
[]
[]
[]
["الأستاذ","(Leer)",{"$f":"IF(B345=\"\",\"\",VLOOKUP(B345,#REF!,2,FALSE))","v":{"$error":"#REF!"}},null,null,null,null,null,null,null,null,null,null,null,null,null,null,null,null,null,null,null,null,null,null,null,null,null,null,null,null,null,null,null,null,null,null,null,null,null,null,null,null,null,null,null,null,null,null,null,null,null,null,null,null,null,null,null,null,null,null,null,null,null,null,null,null,null,null,null,null,null,null,null,null,null,null,null,"الأستاذ","(Leer)",{"$f":"IF(CB345=\"\",\"\",VLOOKUP(CB345,#REF!,2,FALSE))","v":{"$error":"#REF!"}},null,null,null,null,null,null,null,null,null,null,null,null,null,null,null,null,null,null,null,null,null,null,null,null,null,null,null,null,null,null,null,null,null,null,null,null,null,null,null,null,null,null,null,null,null,null,null,null,null,null,null,null,null,null,null,null,null,null,null,null,null,null,null,null,null,null,null,null,null,null,null,null,null,null,null,"الأستاذ","(Leer)",{"$f":"IF(FB345=\"\",\"\",VLOOKUP(FB345,#REF!,2,FALSE))","v":{"$error":"#REF!"}}]
["المستوى","(Leer)",{"$f":"B346","v":"(Leer)"},null,null,null,null,null,null,null,null,null,null,null,null,null,null,null,null,null,null,null,null,null,null,null,null,null,null,null,null,null,null,null,null,null,null,null,null,null,null,null,null,null,null,null,null,null,null,null,null,null,null,null,null,null,null,null,null,null,null,null,null,null,null,null,null,null,null,null,null,null,null,null,null,null,null,null,"المستوى","(Leer)",{"$f":"CB346","v":"(Leer)"},null,null,null,null,null,null,null,null,null,null,null,null,null,null,null,null,null,null,null,null,null,null,null,null,null,null,null,null,null,null,null,null,null,null,null,null,null,null,null,null,null,null,null,null,null,null,null,null,null,null,null,null,null,null,null,null,null,null,null,null,null,null,null,null,null,null,null,null,null,null,null,null,null,null,null,"المستوى","(Leer)",{"$f":"FB346","v":"(Leer)"}]
["الفوج","(Mehrere Elemente)",null,null,null,null,null,null,null,null,null,null,null,null,null,null,null,null,null,null,null,null,null,null,null,null,null,null,null,null,null,null,null,null,null,null,null,null,null,null,null,null,null,null,null,null,null,null,null,null,null,null,null,null,null,null,null,null,null,null,null,null,null,null,null,null,null,null,null,null,null,null,null,null,null,null,null,null,"الفوج","(Mehrere Elemente)",null,null,null,null,null,null,null,null,null,null,null,null,null,null,null,null,null,null,null,null,null,null,null,null,null,null,null,null,null,null,null,null,null,null,null,null,null,null,null,null,null,null,null,null,null,null,null,null,null,null,null,null,null,null,null,null,null,null,null,null,null,null,null,null,null,null,null,null,null,null,null,null,null,null,null,null,"الفوج","(Mehrere Elemente)"]
[]
["رقم","إسم الولي","اللقب","الأطفال","السن","شتنبر","أكتوبر","نونبر ","دجنبر ","يناير","فبراير ","مارس ","أبريل ","ماي ","يونيو","الغياب","راسب \\ ناجح","الفاتحة","الناس","الفلق","الإخلاص","المسد","النصر","الكافرون","الكوثر","الماعون","قريش","الفيل","الهمزة","العصر","التكاثر","القارعة","العاديات","الزلزلة","البينة","القدر","العلق","التين","الشرح","الضحى","الليل","الشمس","البلد","الفجر","الغاشية","الأعلى","الطارق","البروج","الإنشقاق","المطففين","الإنفطار","التكوير -1","التكوير -2","التكوير -3","عبس -1","عبس -2","عبس -3","النازعات -1","النازعات -2","النازعات -3","النبأ -1","النبأ -2","النبأ -3",null,null,null,null,null,null,null,null,null,null,null,null,null,null,null,"رقم","إسم الولي","اللقب","الأطفال","السن","شتنبر","أكتوبر","نونبر ","دجنبر ","يناير","فبراير ","مارس ","أبريل ","ماي ","يونيو","الغياب","راسب \\ ناجح","الفاتحة","الناس","الفلق","الإخلاص","المسد","النصر","الكافرون","الكوثر","الماعون","قريش","الفيل","الهمزة","العصر","التكاثر","القارعة","العاديات","الزلزلة","البينة","القدر","العلق","التين","الشرح","الضحى","الليل","الشمس","البلد","الفجر","الغاشية","الأعلى","الطارق","البروج","الإنشقاق","المطففين","الإنفطار","التكوير -1","التكوير -2","التكوير -3","عبس -1","عبس -2","عبس -3","النازعات -1","النازعات -2","النازعات -3","النبأ -1","النبأ -2","النبأ -3",null,null,null,null,null,null,null,null,null,null,null,null,null,null,null,"رقم","إسم الولي","اللقب","الأطفال","السن","شتنبر","أكتوبر","نونبر ","دجنبر ","يناير","فبراير ","مارس ","أبريل ","ماي ","يونيو","الغياب","راسب \\ ناجح","الفاتحة","الناس","الفلق","الإخلاص","المسد","النصر","الكافرون","الكوثر","الماعون","قريش","الفيل","الهمزة","العصر","التكاثر","القارعة","العاديات","الزلزلة","البينة","القدر","العلق","التين","الشرح","الضحى","الليل","الشمس","البلد","الفجر","الغاشية","الأعلى","الطارق","البروج","الإنشقاق","المطففين","الإنفطار","التكوير -1","التكوير -2","التكوير -3","عبس -1","عبس -2","عبس -3","النازعات -1","النازعات -2","النازعات -3","النبأ -1","النبأ -2","النبأ -3"]

{"sheet":"Alriab2","index":2,"n_rows":46,"n_cols":32,"rows_kept":46,"cut":false,"hidden":false,"merged":[[3,0,3,1],[3,4,3,8],[3,9,3,12],[3,20,3,24],[3,25,3,28],[1,20,1,25],[1,26,1,28],[4,0,4,1],[4,2,4,3],[4,4,4,8],[4,9,4,12],[5,0,5,1],[5,2,5,3],[1,16,1,19],[3,16,3,17],[4,16,4,17],[4,18,4,19],[1,0,1,3],[1,4,1,9],[1,10,1,12],[4,20,4,24],[4,25,4,28],[2,0,2,1],[2,2,2,3],[5,16,5,17],[5,18,5,19]]}
[]
[" لائحة الغياب",null,null,null,{"$f":"OK!$D$5","v":0},null,null,null,null,null,{"$f":"OK!$B$4","v":2021},null,null,null,null,null," لائحة الغياب",null,null,null,{"$f":"OK!$D$5","v":0},null,null,null,null,null,{"$f":"OK!$B$4","v":2021}]
[{"$f":"E10","v":"2021-12-04"},null,{"$f":"OK!A2","v":"2021-12-31"}]
[{"$f":"OK!#REF!","v":{"$error":"#REF!"}},null,{"$f":"OK!#REF!","v":{"$error":"#REF!"}},null,{"$f":"OK!$B$5","v":"00:00:00"},null,null,null,null,{"$f":"OK!#REF!","v":{"$error":"#REF!"}},null,null,null,null,null,null,{"$f":"OK!#REF!","v":{"$error":"#REF!"}},null,{"$f":"OK!#REF!","v":{"$error":"#REF!"}},null,{"$f":"OK!$B$5","v":"00:00:00"},null,null,null,null,{"$f":"OK!#REF!","v":{"$error":"#REF!"}}]
["المستوى: ",null,{"$f":"#REF!","v":{"$error":"#REF!"}},null,null,null,null,null,null,{"$f":"IF(OK!#REF!=\"\",\"\",OK!#REF!)","v":{"$error":"#REF!"}},null,null,null,null,null,null,"المستوى: ",null,{"$f":"#REF!","v":{"$error":"#REF!"}},null,null,null,null,null,null,{"$f":"IF(OK!R2=\"\",\"\",OK!R2)","v":""}]
["الفوج: ",null,"الأول",null,null,null,null,null,null,null,null,null,null,null,null,null,"الفوج: ",null,"الثاني"]
[]
[]
[null,null,null,null,{"$f":"E10","v":"2021-12-04"},"2021-12-05","2021-12-11","2021-12-12","2021-12-18","2021-12-19","2021-12-25","2021-12-26","","",{"$f":"COUNT(E9:N9)","v":8},null,null,null,null,null,{"$f":"E9","v":"2021-12-04"},{"$f":"F9","v":"2021-12-05"},"2021-12-11","2021-12-12","2021-12-18","2021-12-19","2021-12-25","2021-12-26","","",{"$f":"O9","v":8}]
[{"$f":"COUNTIF(D12:D46,\"?*\")","v":0},"تلميذ وتلميذة",null,null,{"$f":"OK!A1-3-WEEKDAY(OK!A1-1,3)+7*1","v":"2021-12-04"},{"$f":"E10+1-MOD(COLUMN(),2)","v":"2021-12-05"},{"$f":"F10+7-MOD(COLUMN(),2)","v":"2021-12-11"},{"$f":"G10+1-MOD(COLUMN(),2)","v":"2021-12-12"},{"$f":"H10+7-MOD(COLUMN(),2)","v":"2021-12-18"},{"$f":"I10+1-MOD(COLUMN(),2)","v":"2021-12-19"},{"$f":"J10+7-MOD(COLUMN(),2)","v":"2021-12-25"},{"$f":"K10+1-MOD(COLUMN(),2)","v":"2021-12-26"},{"$f":"IF(L10+7-MOD(COLUMN(),2)>OK!$A$2,\"\",L10+7-MOD(COLUMN(),2))","v":""},{"$f":"IF(L10+8-MOD(COLUMN(),2)>OK!$A$2,\"\",M10+1-MOD(COLUMN(),2))","v":""},"حصص",null,{"$f":"COUNTIF(T12:T46,\"?*\")","v":0},"تلميذ وتلميذة",null,null,{"$f":"E10","v":"2021-12-04"},"2021-12-05","2021-12-11","2021-12-12","2021-12-18","2021-12-19","2021-12-25","2021-12-26","","","حصص"]
["الرقم","إسم الأب","العائلي","الأطفال","حصة1","حصة2","حصة3","حصة4","حصة5","حصة6","حصة7","حصة8","حصة9","حصة10","الحصاد","%","الرقم","إسم الأب","العائلي","الأطفال","حصة1","حصة2","حصة3","حصة4","حصة5","حصة6","حصة7","حصة8","حصة9","حصة10","الحصاد","السن"]
[{"$f":"IF(Pivot!A6=\"\",\"\",Pivot!A6)","v":""},{"$f":"IF(Pivot!C6=\"\",\"\",Pivot!C6)","v":""},{"$f":"IF(Pivot!D6=\"\",\"\",Pivot!D6)","v":""},{"$f":"IF(Pivot!E6=\"\",\"\",Pivot!E6)","v":""},null,null,null,null,null,null,null,null,null,null,null,{"$f":"IF(Pivot!R6=\"(Leer)\",\"\",IF(Pivot!R6=\"\",\"\",Pivot!R6))","v":""},{"$f":"IF(Pivot!Q6=\"\",\"\",Pivot!Q6)","v":""},{"$f":"IF(Pivot!S6=\"\",\"\",Pivot!S6)","v":""},{"$f":"IF(Pivot!T6=\"\",\"\",Pivot!T6)","v":""},{"$f":"IF(Pivot!U6=\"\",\"\",Pivot!U6)","v":""},null,null,null,null,null,null,null,null,null,null,null,{"$f":"IF(Pivot!V6=\"\",\"\",Pivot!V6)","v":""}]
[{"$f":"IF(Pivot!A7=\"\",\"\",Pivot!A7)","v":""},{"$f":"IF(Pivot!C7=\"\",\"\",Pivot!C7)","v":""},{"$f":"IF(Pivot!D7=\"\",\"\",Pivot!D7)","v":""},{"$f":"IF(Pivot!E7=\"\",\"\",Pivot!E7)","v":""},null,null,null,null,null,null,null,null,null,null,null,{"$f":"IF(Pivot!R7=\"(Leer)\",\"\",IF(Pivot!R7=\"\",\"\",Pivot!R7))","v":""},{"$f":"IF(Pivot!Q7=\"\",\"\",Pivot!Q7)","v":""},{"$f":"IF(Pivot!S7=\"\",\"\",Pivot!S7)","v":""},{"$f":"IF(Pivot!T7=\"\",\"\",Pivot!T7)","v":""},{"$f":"IF(Pivot!U7=\"\",\"\",Pivot!U7)","v":""},null,null,null,null,null,null,null,null,null,null,null,{"$f":"IF(Pivot!V7=\"\",\"\",Pivot!V7)","v":""}]
[{"$f":"IF(Pivot!A8=\"\",\"\",Pivot!A8)","v":""},{"$f":"IF(Pivot!C8=\"\",\"\",Pivot!C8)","v":""},{"$f":"IF(Pivot!D8=\"\",\"\",Pivot!D8)","v":""},{"$f":"IF(Pivot!E8=\"\",\"\",Pivot!E8)","v":""},null,null,null,null,null,null,null,null,null,null,null,{"$f":"IF(Pivot!R8=\"(Leer)\",\"\",IF(Pivot!R8=\"\",\"\",Pivot!R8))","v":""},{"$f":"IF(Pivot!Q8=\"\",\"\",Pivot!Q8)","v":""},{"$f":"IF(Pivot!S8=\"\",\"\",Pivot!S8)","v":""},{"$f":"IF(Pivot!T8=\"\",\"\",Pivot!T8)","v":""},{"$f":"IF(Pivot!U8=\"\",\"\",Pivot!U8)","v":""},null,null,null,null,null,null,null,null,null,null,null,{"$f":"IF(Pivot!V8=\"\",\"\",Pivot!V8)","v":""}]
[{"$f":"IF(Pivot!A9=\"\",\"\",Pivot!A9)","v":""},{"$f":"IF(Pivot!C9=\"\",\"\",Pivot!C9)","v":""},{"$f":"IF(Pivot!D9=\"\",\"\",Pivot!D9)","v":""},{"$f":"IF(Pivot!E9=\"\",\"\",Pivot!E9)","v":""},null,null,null,null,null,null,null,null,null,null,null,{"$f":"IF(Pivot!R9=\"(Leer)\",\"\",IF(Pivot!R9=\"\",\"\",Pivot!R9))","v":""},{"$f":"IF(Pivot!Q9=\"\",\"\",Pivot!Q9)","v":""},{"$f":"IF(Pivot!S9=\"\",\"\",Pivot!S9)","v":""},{"$f":"IF(Pivot!T9=\"\",\"\",Pivot!T9)","v":""},{"$f":"IF(Pivot!U9=\"\",\"\",Pivot!U9)","v":""},null,null,null,null,null,null,null,null,null,null,null,{"$f":"IF(Pivot!V9=\"\",\"\",Pivot!V9)","v":""}]
[{"$f":"IF(Pivot!A10=\"\",\"\",Pivot!A10)","v":""},{"$f":"IF(Pivot!C10=\"\",\"\",Pivot!C10)","v":""},{"$f":"IF(Pivot!D10=\"\",\"\",Pivot!D10)","v":""},{"$f":"IF(Pivot!E10=\"\",\"\",Pivot!E10)","v":""},null,null,null,null,null,null,null,null,null,null,null,{"$f":"IF(Pivot!R10=\"(Leer)\",\"\",IF(Pivot!R10=\"\",\"\",Pivot!R10))","v":""},{"$f":"IF(Pivot!Q10=\"\",\"\",Pivot!Q10)","v":""},{"$f":"IF(Pivot!S10=\"\",\"\",Pivot!S10)","v":""},{"$f":"IF(Pivot!T10=\"\",\"\",Pivot!T10)","v":""},{"$f":"IF(Pivot!U10=\"\",\"\",Pivot!U10)","v":""},null,null,null,null,null,null,null,null,null,null,null,{"$f":"IF(Pivot!V10=\"\",\"\",Pivot!V10)","v":""}]
[{"$f":"IF(Pivot!A11=\"\",\"\",Pivot!A11)","v":""},{"$f":"IF(Pivot!C11=\"\",\"\",Pivot!C11)","v":""},{"$f":"IF(Pivot!D11=\"\",\"\",Pivot!D11)","v":""},{"$f":"IF(Pivot!E11=\"\",\"\",Pivot!E11)","v":""},null,null,null,null,null,null,null,null,null,null,null,{"$f":"IF(Pivot!R11=\"(Leer)\",\"\",IF(Pivot!R11=\"\",\"\",Pivot!R11))","v":""},{"$f":"IF(Pivot!Q11=\"\",\"\",Pivot!Q11)","v":""},{"$f":"IF(Pivot!S11=\"\",\"\",Pivot!S11)","v":""},{"$f":"IF(Pivot!T11=\"\",\"\",Pivot!T11)","v":""},{"$f":"IF(Pivot!U11=\"\",\"\",Pivot!U11)","v":""},null,null,null,null,null,null,null,null,null,null,null,{"$f":"IF(Pivot!V11=\"\",\"\",Pivot!V11)","v":""}]
[{"$f":"IF(Pivot!A12=\"\",\"\",Pivot!A12)","v":""},{"$f":"IF(Pivot!C12=\"\",\"\",Pivot!C12)","v":""},{"$f":"IF(Pivot!D12=\"\",\"\",Pivot!D12)","v":""},{"$f":"IF(Pivot!E12=\"\",\"\",Pivot!E12)","v":""},null,null,null,null,null,null,null,null,null,null,null,{"$f":"IF(Pivot!R12=\"(Leer)\",\"\",IF(Pivot!R12=\"\",\"\",Pivot!R12))","v":""},{"$f":"IF(Pivot!Q12=\"\",\"\",Pivot!Q12)","v":""},{"$f":"IF(Pivot!S12=\"\",\"\",Pivot!S12)","v":""},{"$f":"IF(Pivot!T12=\"\",\"\",Pivot!T12)","v":""},{"$f":"IF(Pivot!U12=\"\",\"\",Pivot!U12)","v":""},null,null,null,null,null,null,null,null,null,null,null,{"$f":"IF(Pivot!V12=\"\",\"\",Pivot!V12)","v":""}]
[{"$f":"IF(Pivot!A13=\"\",\"\",Pivot!A13)","v":""},{"$f":"IF(Pivot!C13=\"\",\"\",Pivot!C13)","v":""},{"$f":"IF(Pivot!D13=\"\",\"\",Pivot!D13)","v":""},{"$f":"IF(Pivot!E13=\"\",\"\",Pivot!E13)","v":""},null,null,null,null,null,null,null,null,null,null,null,{"$f":"IF(Pivot!R13=\"(Leer)\",\"\",IF(Pivot!R13=\"\",\"\",Pivot!R13))","v":""},{"$f":"IF(Pivot!Q13=\"\",\"\",Pivot!Q13)","v":""},{"$f":"IF(Pivot!S13=\"\",\"\",Pivot!S13)","v":""},{"$f":"IF(Pivot!T13=\"\",\"\",Pivot!T13)","v":""},{"$f":"IF(Pivot!U13=\"\",\"\",Pivot!U13)","v":""},null,null,null,null,null,null,null,null,null,null,null,{"$f":"IF(Pivot!V13=\"\",\"\",Pivot!V13)","v":""}]
[{"$f":"IF(Pivot!A14=\"\",\"\",Pivot!A14)","v":""},{"$f":"IF(Pivot!C14=\"\",\"\",Pivot!C14)","v":""},{"$f":"IF(Pivot!D14=\"\",\"\",Pivot!D14)","v":""},{"$f":"IF(Pivot!E14=\"\",\"\",Pivot!E14)","v":""},null,null,null,null,null,null,null,null,null,null,null,{"$f":"IF(Pivot!R14=\"(Leer)\",\"\",IF(Pivot!R14=\"\",\"\",Pivot!R14))","v":""},{"$f":"IF(Pivot!Q14=\"\",\"\",Pivot!Q14)","v":""},{"$f":"IF(Pivot!S14=\"\",\"\",Pivot!S14)","v":""},{"$f":"IF(Pivot!T14=\"\",\"\",Pivot!T14)","v":""},{"$f":"IF(Pivot!U14=\"\",\"\",Pivot!U14)","v":""},null,null,null,null,null,null,null,null,null,null,null,{"$f":"IF(Pivot!V14=\"\",\"\",Pivot!V14)","v":""}]
[{"$f":"IF(Pivot!A15=\"\",\"\",Pivot!A15)","v":""},{"$f":"IF(Pivot!C15=\"\",\"\",Pivot!C15)","v":""},{"$f":"IF(Pivot!D15=\"\",\"\",Pivot!D15)","v":""},{"$f":"IF(Pivot!E15=\"\",\"\",Pivot!E15)","v":""},null,null,null,null,null,null,null,null,null,null,null,{"$f":"IF(Pivot!R15=\"(Leer)\",\"\",IF(Pivot!R15=\"\",\"\",Pivot!R15))","v":""},{"$f":"IF(Pivot!Q15=\"\",\"\",Pivot!Q15)","v":""},{"$f":"IF(Pivot!S15=\"\",\"\",Pivot!S15)","v":""},{"$f":"IF(Pivot!T15=\"\",\"\",Pivot!T15)","v":""},{"$f":"IF(Pivot!U15=\"\",\"\",Pivot!U15)","v":""},null,null,null,null,null,null,null,null,null,null,null,{"$f":"IF(Pivot!V15=\"\",\"\",Pivot!V15)","v":""}]
[{"$f":"IF(Pivot!A16=\"\",\"\",Pivot!A16)","v":""},{"$f":"IF(Pivot!C16=\"\",\"\",Pivot!C16)","v":""},{"$f":"IF(Pivot!D16=\"\",\"\",Pivot!D16)","v":""},{"$f":"IF(Pivot!E16=\"\",\"\",Pivot!E16)","v":""},null,null,null,null,null,null,null,null,null,null,null,{"$f":"IF(Pivot!R16=\"(Leer)\",\"\",IF(Pivot!R16=\"\",\"\",Pivot!R16))","v":""},{"$f":"IF(Pivot!Q16=\"\",\"\",Pivot!Q16)","v":""},{"$f":"IF(Pivot!S16=\"\",\"\",Pivot!S16)","v":""},{"$f":"IF(Pivot!T16=\"\",\"\",Pivot!T16)","v":""},{"$f":"IF(Pivot!U16=\"\",\"\",Pivot!U16)","v":""},null,null,null,null,null,null,null,null,null,null,null,{"$f":"IF(Pivot!V16=\"\",\"\",Pivot!V16)","v":""}]
[{"$f":"IF(Pivot!A17=\"\",\"\",Pivot!A17)","v":""},{"$f":"IF(Pivot!C17=\"\",\"\",Pivot!C17)","v":""},{"$f":"IF(Pivot!D17=\"\",\"\",Pivot!D17)","v":""},{"$f":"IF(Pivot!E17=\"\",\"\",Pivot!E17)","v":""},null,null,null,null,null,null,null,null,null,null,null,{"$f":"IF(Pivot!R17=\"(Leer)\",\"\",IF(Pivot!R17=\"\",\"\",Pivot!R17))","v":""},{"$f":"IF(Pivot!Q17=\"\",\"\",Pivot!Q17)","v":""},{"$f":"IF(Pivot!S17=\"\",\"\",Pivot!S17)","v":""},{"$f":"IF(Pivot!T17=\"\",\"\",Pivot!T17)","v":""},{"$f":"IF(Pivot!U17=\"\",\"\",Pivot!U17)","v":""},null,null,null,null,null,null,null,null,null,null,null,{"$f":"IF(Pivot!V17=\"\",\"\",Pivot!V17)","v":""}]
[{"$f":"IF(Pivot!A18=\"\",\"\",Pivot!A18)","v":""},{"$f":"IF(Pivot!C18=\"\",\"\",Pivot!C18)","v":""},{"$f":"IF(Pivot!D18=\"\",\"\",Pivot!D18)","v":""},{"$f":"IF(Pivot!E18=\"\",\"\",Pivot!E18)","v":""},null,null,null,null,null,null,null,null,null,null,null,{"$f":"IF(Pivot!R18=\"(Leer)\",\"\",IF(Pivot!R18=\"\",\"\",Pivot!R18))","v":""},{"$f":"IF(Pivot!Q18=\"\",\"\",Pivot!Q18)","v":""},{"$f":"IF(Pivot!S18=\"\",\"\",Pivot!S18)","v":""},{"$f":"IF(Pivot!T18=\"\",\"\",Pivot!T18)","v":""},{"$f":"IF(Pivot!U18=\"\",\"\",Pivot!U18)","v":""},null,null,null,null,null,null,null,null,null,null,null,{"$f":"IF(Pivot!V18=\"\",\"\",Pivot!V18)","v":""}]
[{"$f":"IF(Pivot!A19=\"\",\"\",Pivot!A19)","v":""},{"$f":"IF(Pivot!C19=\"\",\"\",Pivot!C19)","v":""},{"$f":"IF(Pivot!D19=\"\",\"\",Pivot!D19)","v":""},{"$f":"IF(Pivot!E19=\"\",\"\",Pivot!E19)","v":""},null,null,null,null,null,null,null,null,null,null,null,{"$f":"IF(Pivot!R19=\"(Leer)\",\"\",IF(Pivot!R19=\"\",\"\",Pivot!R19))","v":""},{"$f":"IF(Pivot!Q19=\"\",\"\",Pivot!Q19)","v":""},{"$f":"IF(Pivot!S19=\"\",\"\",Pivot!S19)","v":""},{"$f":"IF(Pivot!T19=\"\",\"\",Pivot!T19)","v":""},{"$f":"IF(Pivot!U19=\"\",\"\",Pivot!U19)","v":""},null,null,null,null,null,null,null,null,null,null,null,{"$f":"IF(Pivot!V19=\"\",\"\",Pivot!V19)","v":""}]
[{"$f":"IF(Pivot!A20=\"\",\"\",Pivot!A20)","v":""},{"$f":"IF(Pivot!C20=\"\",\"\",Pivot!C20)","v":""},{"$f":"IF(Pivot!D20=\"\",\"\",Pivot!D20)","v":""},{"$f":"IF(Pivot!E20=\"\",\"\",Pivot!E20)","v":""},null,null,null,null,null,null,null,null,null,null,null,{"$f":"IF(Pivot!R20=\"(Leer)\",\"\",IF(Pivot!R20=\"\",\"\",Pivot!R20))","v":""},{"$f":"IF(Pivot!Q20=\"\",\"\",Pivot!Q20)","v":""},{"$f":"IF(Pivot!S20=\"\",\"\",Pivot!S20)","v":""},{"$f":"IF(Pivot!T20=\"\",\"\",Pivot!T20)","v":""},{"$f":"IF(Pivot!U20=\"\",\"\",Pivot!U20)","v":""},null,null,null,null,null,null,null,null,null,null,null,{"$f":"IF(Pivot!V20=\"\",\"\",Pivot!V20)","v":""}]
[{"$f":"IF(Pivot!A21=\"\",\"\",Pivot!A21)","v":""},{"$f":"IF(Pivot!C21=\"\",\"\",Pivot!C21)","v":""},{"$f":"IF(Pivot!D21=\"\",\"\",Pivot!D21)","v":""},{"$f":"IF(Pivot!E21=\"\",\"\",Pivot!E21)","v":""},null,null,null,null,null,null,null,null,null,null,null,{"$f":"IF(Pivot!R21=\"(Leer)\",\"\",IF(Pivot!R21=\"\",\"\",Pivot!R21))","v":""},{"$f":"IF(Pivot!Q21=\"\",\"\",Pivot!Q21)","v":""},{"$f":"IF(Pivot!S21=\"\",\"\",Pivot!S21)","v":""},{"$f":"IF(Pivot!T21=\"\",\"\",Pivot!T21)","v":""},{"$f":"IF(Pivot!U21=\"\",\"\",Pivot!U21)","v":""},null,null,null,null,null,null,null,null,null,null,null,{"$f":"IF(Pivot!V21=\"\",\"\",Pivot!V21)","v":""}]
[{"$f":"IF(Pivot!A22=\"\",\"\",Pivot!A22)","v":""},{"$f":"IF(Pivot!C22=\"\",\"\",Pivot!C22)","v":""},{"$f":"IF(Pivot!D22=\"\",\"\",Pivot!D22)","v":""},{"$f":"IF(Pivot!E22=\"\",\"\",Pivot!E22)","v":""},null,null,null,null,null,null,null,null,null,null,null,{"$f":"IF(Pivot!R22=\"(Leer)\",\"\",IF(Pivot!R22=\"\",\"\",Pivot!R22))","v":""},{"$f":"IF(Pivot!Q22=\"\",\"\",Pivot!Q22)","v":""},{"$f":"IF(Pivot!S22=\"\",\"\",Pivot!S22)","v":""},{"$f":"IF(Pivot!T22=\"\",\"\",Pivot!T22)","v":""},{"$f":"IF(Pivot!U22=\"\",\"\",Pivot!U22)","v":""},null,null,null,null,null,null,null,null,null,null,null,{"$f":"IF(Pivot!V22=\"\",\"\",Pivot!V22)","v":""}]
[{"$f":"IF(Pivot!A23=\"\",\"\",Pivot!A23)","v":""},{"$f":"IF(Pivot!C23=\"\",\"\",Pivot!C23)","v":""},{"$f":"IF(Pivot!D23=\"\",\"\",Pivot!D23)","v":""},{"$f":"IF(Pivot!E23=\"\",\"\",Pivot!E23)","v":""},null,null,null,null,null,null,null,null,null,null,null,{"$f":"IF(Pivot!R23=\"(Leer)\",\"\",IF(Pivot!R23=\"\",\"\",Pivot!R23))","v":""},{"$f":"IF(Pivot!Q23=\"\",\"\",Pivot!Q23)","v":""},{"$f":"IF(Pivot!S23=\"\",\"\",Pivot!S23)","v":""},{"$f":"IF(Pivot!T23=\"\",\"\",Pivot!T23)","v":""},{"$f":"IF(Pivot!U23=\"\",\"\",Pivot!U23)","v":""},null,null,null,null,null,null,null,null,null,null,null,{"$f":"IF(Pivot!V23=\"\",\"\",Pivot!V23)","v":""}]
[{"$f":"IF(Pivot!A24=\"\",\"\",Pivot!A24)","v":""},{"$f":"IF(Pivot!C24=\"\",\"\",Pivot!C24)","v":""},{"$f":"IF(Pivot!D24=\"\",\"\",Pivot!D24)","v":""},{"$f":"IF(Pivot!E24=\"\",\"\",Pivot!E24)","v":""},null,null,null,null,null,null,null,null,null,null,null,{"$f":"IF(Pivot!R24=\"(Leer)\",\"\",IF(Pivot!R24=\"\",\"\",Pivot!R24))","v":""},{"$f":"IF(Pivot!Q24=\"\",\"\",Pivot!Q24)","v":""},{"$f":"IF(Pivot!S24=\"\",\"\",Pivot!S24)","v":""},{"$f":"IF(Pivot!T24=\"\",\"\",Pivot!T24)","v":""},{"$f":"IF(Pivot!U24=\"\",\"\",Pivot!U24)","v":""},null,null,null,null,null,null,null,null,null,null,null,{"$f":"IF(Pivot!V24=\"\",\"\",Pivot!V24)","v":""}]
[{"$f":"IF(Pivot!A25=\"\",\"\",Pivot!A25)","v":""},{"$f":"IF(Pivot!C25=\"\",\"\",Pivot!C25)","v":""},{"$f":"IF(Pivot!D25=\"\",\"\",Pivot!D25)","v":""},{"$f":"IF(Pivot!E25=\"\",\"\",Pivot!E25)","v":""},null,null,null,null,null,null,null,null,null,null,null,{"$f":"IF(Pivot!R25=\"(Leer)\",\"\",IF(Pivot!R25=\"\",\"\",Pivot!R25))","v":""},{"$f":"IF(Pivot!Q25=\"\",\"\",Pivot!Q25)","v":""},{"$f":"IF(Pivot!S25=\"\",\"\",Pivot!S25)","v":""},{"$f":"IF(Pivot!T25=\"\",\"\",Pivot!T25)","v":""},{"$f":"IF(Pivot!U25=\"\",\"\",Pivot!U25)","v":""},null,null,null,null,null,null,null,null,null,null,null,{"$f":"IF(Pivot!V25=\"\",\"\",Pivot!V25)","v":""}]
[{"$f":"IF(Pivot!A26=\"\",\"\",Pivot!A26)","v":""},{"$f":"IF(Pivot!C26=\"\",\"\",Pivot!C26)","v":""},{"$f":"IF(Pivot!D26=\"\",\"\",Pivot!D26)","v":""},{"$f":"IF(Pivot!E26=\"\",\"\",Pivot!E26)","v":""},null,null,null,null,null,null,null,null,null,null,null,{"$f":"IF(Pivot!R26=\"(Leer)\",\"\",IF(Pivot!R26=\"\",\"\",Pivot!R26))","v":""},{"$f":"IF(Pivot!Q26=\"\",\"\",Pivot!Q26)","v":""},{"$f":"IF(Pivot!S26=\"\",\"\",Pivot!S26)","v":""},{"$f":"IF(Pivot!T26=\"\",\"\",Pivot!T26)","v":""},{"$f":"IF(Pivot!U26=\"\",\"\",Pivot!U26)","v":""},null,null,null,null,null,null,null,null,null,null,null,{"$f":"IF(Pivot!V26=\"\",\"\",Pivot!V26)","v":""}]
[{"$f":"IF(Pivot!A27=\"\",\"\",Pivot!A27)","v":""},{"$f":"IF(Pivot!C27=\"\",\"\",Pivot!C27)","v":""},{"$f":"IF(Pivot!D27=\"\",\"\",Pivot!D27)","v":""},{"$f":"IF(Pivot!E27=\"\",\"\",Pivot!E27)","v":""},null,null,null,null,null,null,null,null,null,null,null,{"$f":"IF(Pivot!R27=\"(Leer)\",\"\",IF(Pivot!R27=\"\",\"\",Pivot!R27))","v":""},{"$f":"IF(Pivot!Q27=\"\",\"\",Pivot!Q27)","v":""},{"$f":"IF(Pivot!S27=\"\",\"\",Pivot!S27)","v":""},{"$f":"IF(Pivot!T27=\"\",\"\",Pivot!T27)","v":""},{"$f":"IF(Pivot!U27=\"\",\"\",Pivot!U27)","v":""},null,null,null,null,null,null,null,null,null,null,null,{"$f":"IF(Pivot!V27=\"\",\"\",Pivot!V27)","v":""}]
[{"$f":"IF(Pivot!A28=\"\",\"\",Pivot!A28)","v":""},{"$f":"IF(Pivot!C28=\"\",\"\",Pivot!C28)","v":""},{"$f":"IF(Pivot!D28=\"\",\"\",Pivot!D28)","v":""},{"$f":"IF(Pivot!E28=\"\",\"\",Pivot!E28)","v":""},null,null,null,null,null,null,null,null,null,null,null,{"$f":"IF(Pivot!R28=\"(Leer)\",\"\",IF(Pivot!R28=\"\",\"\",Pivot!R28))","v":""},{"$f":"IF(Pivot!Q28=\"\",\"\",Pivot!Q28)","v":""},{"$f":"IF(Pivot!S28=\"\",\"\",Pivot!S28)","v":""},{"$f":"IF(Pivot!T28=\"\",\"\",Pivot!T28)","v":""},{"$f":"IF(Pivot!U28=\"\",\"\",Pivot!U28)","v":""},null,null,null,null,null,null,null,null,null,null,null,{"$f":"IF(Pivot!V28=\"\",\"\",Pivot!V28)","v":""}]
[{"$f":"IF(Pivot!A29=\"\",\"\",Pivot!A29)","v":""},{"$f":"IF(Pivot!C29=\"\",\"\",Pivot!C29)","v":""},{"$f":"IF(Pivot!D29=\"\",\"\",Pivot!D29)","v":""},{"$f":"IF(Pivot!E29=\"\",\"\",Pivot!E29)","v":""},null,null,null,null,null,null,null,null,null,null,null,{"$f":"IF(Pivot!R29=\"(Leer)\",\"\",IF(Pivot!R29=\"\",\"\",Pivot!R29))","v":""},{"$f":"IF(Pivot!Q29=\"\",\"\",Pivot!Q29)","v":""},{"$f":"IF(Pivot!S29=\"\",\"\",Pivot!S29)","v":""},{"$f":"IF(Pivot!T29=\"\",\"\",Pivot!T29)","v":""},{"$f":"IF(Pivot!U29=\"\",\"\",Pivot!U29)","v":""},null,null,null,null,null,null,null,null,null,null,null,{"$f":"IF(Pivot!V29=\"\",\"\",Pivot!V29)","v":""}]
[{"$f":"IF(Pivot!A30=\"\",\"\",Pivot!A30)","v":""},{"$f":"IF(Pivot!C30=\"\",\"\",Pivot!C30)","v":""},{"$f":"IF(Pivot!D30=\"\",\"\",Pivot!D30)","v":""},{"$f":"IF(Pivot!E30=\"\",\"\",Pivot!E30)","v":""},null,null,null,null,null,null,null,null,null,null,null,{"$f":"IF(Pivot!R30=\"(Leer)\",\"\",IF(Pivot!R30=\"\",\"\",Pivot!R30))","v":""},{"$f":"IF(Pivot!Q30=\"\",\"\",Pivot!Q30)","v":""},{"$f":"IF(Pivot!S30=\"\",\"\",Pivot!S30)","v":""},{"$f":"IF(Pivot!T30=\"\",\"\",Pivot!T30)","v":""},{"$f":"IF(Pivot!U30=\"\",\"\",Pivot!U30)","v":""},null,null,null,null,null,null,null,null,null,null,null,{"$f":"IF(Pivot!V30=\"\",\"\",Pivot!V30)","v":""}]
[{"$f":"IF(Pivot!A31=\"\",\"\",Pivot!A31)","v":""},{"$f":"IF(Pivot!C31=\"\",\"\",Pivot!C31)","v":""},{"$f":"IF(Pivot!D31=\"\",\"\",Pivot!D31)","v":""},{"$f":"IF(Pivot!E31=\"\",\"\",Pivot!E31)","v":""},null,null,null,null,null,null,null,null,null,null,null,{"$f":"IF(Pivot!R31=\"(Leer)\",\"\",IF(Pivot!R31=\"\",\"\",Pivot!R31))","v":""},{"$f":"IF(Pivot!Q31=\"\",\"\",Pivot!Q31)","v":""},{"$f":"IF(Pivot!S31=\"\",\"\",Pivot!S31)","v":""},{"$f":"IF(Pivot!T31=\"\",\"\",Pivot!T31)","v":""},{"$f":"IF(Pivot!U31=\"\",\"\",Pivot!U31)","v":""},null,null,null,null,null,null,null,null,null,null,null,{"$f":"IF(Pivot!V31=\"\",\"\",Pivot!V31)","v":""}]
[{"$f":"IF(Pivot!A32=\"\",\"\",Pivot!A32)","v":""},{"$f":"IF(Pivot!C32=\"\",\"\",Pivot!C32)","v":""},{"$f":"IF(Pivot!D32=\"\",\"\",Pivot!D32)","v":""},{"$f":"IF(Pivot!E32=\"\",\"\",Pivot!E32)","v":""},null,null,null,null,null,null,null,null,null,null,null,{"$f":"IF(Pivot!R32=\"(Leer)\",\"\",IF(Pivot!R32=\"\",\"\",Pivot!R32))","v":""},{"$f":"IF(Pivot!Q32=\"\",\"\",Pivot!Q32)","v":""},{"$f":"IF(Pivot!S32=\"\",\"\",Pivot!S32)","v":""},{"$f":"IF(Pivot!T32=\"\",\"\",Pivot!T32)","v":""},{"$f":"IF(Pivot!U32=\"\",\"\",Pivot!U32)","v":""},null,null,null,null,null,null,null,null,null,null,null,{"$f":"IF(Pivot!V32=\"\",\"\",Pivot!V32)","v":""}]
[{"$f":"IF(Pivot!A33=\"\",\"\",Pivot!A33)","v":""},{"$f":"IF(Pivot!C33=\"\",\"\",Pivot!C33)","v":""},{"$f":"IF(Pivot!D33=\"\",\"\",Pivot!D33)","v":""},{"$f":"IF(Pivot!E33=\"\",\"\",Pivot!E33)","v":""},null,null,null,null,null,null,null,null,null,null,null,{"$f":"IF(Pivot!R33=\"(Leer)\",\"\",IF(Pivot!R33=\"\",\"\",Pivot!R33))","v":""},{"$f":"IF(Pivot!Q33=\"\",\"\",Pivot!Q33)","v":""},{"$f":"IF(Pivot!S33=\"\",\"\",Pivot!S33)","v":""},{"$f":"IF(Pivot!T33=\"\",\"\",Pivot!T33)","v":""},{"$f":"IF(Pivot!U33=\"\",\"\",Pivot!U33)","v":""},null,null,null,null,null,null,null,null,null,null,null,{"$f":"IF(Pivot!V33=\"\",\"\",Pivot!V33)","v":""}]
[{"$f":"IF(Pivot!A34=\"\",\"\",Pivot!A34)","v":""},{"$f":"IF(Pivot!C34=\"\",\"\",Pivot!C34)","v":""},{"$f":"IF(Pivot!D34=\"\",\"\",Pivot!D34)","v":""},{"$f":"IF(Pivot!E34=\"\",\"\",Pivot!E34)","v":""},null,null,null,null,null,null,null,null,null,null,null,{"$f":"IF(Pivot!R34=\"(Leer)\",\"\",IF(Pivot!R34=\"\",\"\",Pivot!R34))","v":""},{"$f":"IF(Pivot!Q34=\"\",\"\",Pivot!Q34)","v":""},{"$f":"IF(Pivot!S34=\"\",\"\",Pivot!S34)","v":""},{"$f":"IF(Pivot!T34=\"\",\"\",Pivot!T34)","v":""},{"$f":"IF(Pivot!U34=\"\",\"\",Pivot!U34)","v":""},null,null,null,null,null,null,null,null,null,null,null,{"$f":"IF(Pivot!V34=\"\",\"\",Pivot!V34)","v":""}]
[{"$f":"IF(Pivot!A35=\"\",\"\",Pivot!A35)","v":""},{"$f":"IF(Pivot!C35=\"\",\"\",Pivot!C35)","v":""},{"$f":"IF(Pivot!D35=\"\",\"\",Pivot!D35)","v":""},{"$f":"IF(Pivot!E35=\"\",\"\",Pivot!E35)","v":""},null,null,null,null,null,null,null,null,null,null,null,{"$f":"IF(Pivot!R35=\"(Leer)\",\"\",IF(Pivot!R35=\"\",\"\",Pivot!R35))","v":""},{"$f":"IF(Pivot!Q35=\"\",\"\",Pivot!Q35)","v":""},{"$f":"IF(Pivot!S35=\"\",\"\",Pivot!S35)","v":""},{"$f":"IF(Pivot!T35=\"\",\"\",Pivot!T35)","v":""},{"$f":"IF(Pivot!U35=\"\",\"\",Pivot!U35)","v":""},null,null,null,null,null,null,null,null,null,null,null,{"$f":"IF(Pivot!V35=\"\",\"\",Pivot!V35)","v":""}]
[{"$f":"IF(Pivot!A36=\"\",\"\",Pivot!A36)","v":""},{"$f":"IF(Pivot!C36=\"\",\"\",Pivot!C36)","v":""},{"$f":"IF(Pivot!D36=\"\",\"\",Pivot!D36)","v":""},{"$f":"IF(Pivot!E36=\"\",\"\",Pivot!E36)","v":""},null,null,null,null,null,null,null,null,null,null,null,{"$f":"IF(Pivot!R36=\"(Leer)\",\"\",IF(Pivot!R36=\"\",\"\",Pivot!R36))","v":""},{"$f":"IF(Pivot!Q36=\"\",\"\",Pivot!Q36)","v":""},{"$f":"IF(Pivot!S36=\"\",\"\",Pivot!S36)","v":""},{"$f":"IF(Pivot!T36=\"\",\"\",Pivot!T36)","v":""},{"$f":"IF(Pivot!U36=\"\",\"\",Pivot!U36)","v":""},null,null,null,null,null,null,null,null,null,null,null,{"$f":"IF(Pivot!V36=\"\",\"\",Pivot!V36)","v":""}]
[{"$f":"IF(Pivot!A37=\"\",\"\",Pivot!A37)","v":""},{"$f":"IF(Pivot!C37=\"\",\"\",Pivot!C37)","v":""},{"$f":"IF(Pivot!D37=\"\",\"\",Pivot!D37)","v":""},{"$f":"IF(Pivot!E37=\"\",\"\",Pivot!E37)","v":""},null,null,null,null,null,null,null,null,null,null,null,{"$f":"IF(Pivot!R37=\"(Leer)\",\"\",IF(Pivot!R37=\"\",\"\",Pivot!R37))","v":""},{"$f":"IF(Pivot!Q37=\"\",\"\",Pivot!Q37)","v":""},{"$f":"IF(Pivot!S37=\"\",\"\",Pivot!S37)","v":""},{"$f":"IF(Pivot!T37=\"\",\"\",Pivot!T37)","v":""},{"$f":"IF(Pivot!U37=\"\",\"\",Pivot!U37)","v":""},null,null,null,null,null,null,null,null,null,null,null,{"$f":"IF(Pivot!V37=\"\",\"\",Pivot!V37)","v":""}]
[{"$f":"IF(Pivot!A38=\"\",\"\",Pivot!A38)","v":""},{"$f":"IF(Pivot!C38=\"\",\"\",Pivot!C38)","v":""},{"$f":"IF(Pivot!D38=\"\",\"\",Pivot!D38)","v":""},{"$f":"IF(Pivot!E38=\"\",\"\",Pivot!E38)","v":""},null,null,null,null,null,null,null,null,null,null,null,{"$f":"IF(Pivot!R38=\"(Leer)\",\"\",IF(Pivot!R38=\"\",\"\",Pivot!R38))","v":""},{"$f":"IF(Pivot!Q38=\"\",\"\",Pivot!Q38)","v":""},{"$f":"IF(Pivot!S38=\"\",\"\",Pivot!S38)","v":""},{"$f":"IF(Pivot!T38=\"\",\"\",Pivot!T38)","v":""},{"$f":"IF(Pivot!U38=\"\",\"\",Pivot!U38)","v":""},null,null,null,null,null,null,null,null,null,null,null,{"$f":"IF(Pivot!V38=\"\",\"\",Pivot!V38)","v":""}]
[{"$f":"IF(Pivot!A39=\"\",\"\",Pivot!A39)","v":""},{"$f":"IF(Pivot!C39=\"\",\"\",Pivot!C39)","v":""},{"$f":"IF(Pivot!D39=\"\",\"\",Pivot!D39)","v":""},{"$f":"IF(Pivot!E39=\"\",\"\",Pivot!E39)","v":""},null,null,null,null,null,null,null,null,null,null,null,{"$f":"IF(Pivot!R39=\"(Leer)\",\"\",IF(Pivot!R39=\"\",\"\",Pivot!R39))","v":""},{"$f":"IF(Pivot!Q39=\"\",\"\",Pivot!Q39)","v":""},{"$f":"IF(Pivot!S39=\"\",\"\",Pivot!S39)","v":""},{"$f":"IF(Pivot!T39=\"\",\"\",Pivot!T39)","v":""},{"$f":"IF(Pivot!U39=\"\",\"\",Pivot!U39)","v":""},null,null,null,null,null,null,null,null,null,null,null,{"$f":"IF(Pivot!V39=\"\",\"\",Pivot!V39)","v":""}]
[{"$f":"IF(Pivot!A40=\"\",\"\",Pivot!A40)","v":""},{"$f":"IF(Pivot!C40=\"\",\"\",Pivot!C40)","v":""},{"$f":"IF(Pivot!D40=\"\",\"\",Pivot!D40)","v":""},{"$f":"IF(Pivot!E40=\"\",\"\",Pivot!E40)","v":""},null,null,null,null,null,null,null,null,null,null,null,{"$f":"IF(Pivot!R40=\"(Leer)\",\"\",IF(Pivot!R40=\"\",\"\",Pivot!R40))","v":""},{"$f":"IF(Pivot!Q40=\"\",\"\",Pivot!Q40)","v":""},{"$f":"IF(Pivot!S40=\"\",\"\",Pivot!S40)","v":""},{"$f":"IF(Pivot!T40=\"\",\"\",Pivot!T40)","v":""},{"$f":"IF(Pivot!U40=\"\",\"\",Pivot!U40)","v":""},null,null,null,null,null,null,null,null,null,null,null,{"$f":"IF(Pivot!V40=\"\",\"\",Pivot!V40)","v":""}]

{"sheet":"الوضوء","index":3,"n_rows":6,"n_cols":31,"rows_kept":6,"cut":false,"hidden":false,"merged":[[4,23,5,26],[0,14,5,14],[0,19,5,19],[0,20,5,20],[0,21,5,21],[0,23,1,24],[2,23,2,24],[0,25,2,26],[0,15,5,15],[0,16,5,16],[0,17,5,17],[0,18,5,18],[0,22,5,22],[0,10,5,10],[0,11,5,11],[0,12,5,12],[0,13,5,13],[0,5,5,5],[0,6,5,6],[0,7,5,7],[0,8,5,8],[0,9,5,9]]}
["الأستاذ","(Mehrere Elemente)",null,"العدد",null,"النية","التسمية","غسل الكفين ثلاثا","المضمضة"," الإستنشاق","غسل الوجه بكامله","تثليت الغسل في الوجه","غسل اليدين الى الرفقين","تثليت الغسل في اليدين ","مسح الرأس مع الأذنين  ","غسل الرجلين إلى الكعبين","تثليت الغسل في الرجلين","الدلك","تقديم اليمنى على اليسرى","الترتيب","الموالات"," التشهد و الدعاء","لون البطاقة","الوضوء",null,{"$f":"OK!C4","v":"2022-2021"}]
["المستوى","(Mehrere Elemente)",null,{"$f":"COUNTA(A7:A117)","v":0}]
["الفوج","(Leer)",null,null,null,null,null,null,null,null,null,null,null,null,null,null,null,null,null,null,null,null,null,{"$f":"IF(B4=\"W\",\"بنات\",IF(B4=\"M\",\"بنين\",\"\"))","v":""},null,null,null,null,null,null,"لون البطاقة"]
["WM","(Mehrere Elemente)"]
[null,null,null,null,null,null,null,null,null,null,null,null,null,null,null,null,null,null,null,null,null,null,null,"التقييم"]
["رقم","اللقب","الأطفال","السن","الإزدياد"]